BODY,BODY NAME,DATE,TRANSACTION NUMBER, AMOUNT ,SUPPLIER NAME,SUPPLIER ID,EXPENSE AREA,EXPENSE TYPE,EXPENSE CODE
http://statistics.data.gov.uk/id/local-authority/12UE,Huntingdonshire District Council,08/03/2012,529237,1837.87,Civica Uk Ltd,CR415826,Abandoned Vehicles,Software,206
http://statistics.data.gov.uk/id/local-authority/12UE,Huntingdonshire District Council,22/03/2012,100777,2376,Elephant & Castle Freehouse & Motel,CR401969,Accommodation For Homeless,Bed & Breakfast Payment,818
http://statistics.data.gov.uk/id/local-authority/12UE,Huntingdonshire District Council,08/03/2012,100399,1944,Elephant & Castle Freehouse & Motel,CR401969,Accommodation For Homeless,Bed & Breakfast Payment,818
http://statistics.data.gov.uk/id/local-authority/12UE,Huntingdonshire District Council,22/03/2012,101197,1836,Elephant & Castle Freehouse & Motel,CR401969,Accommodation For Homeless,Bed & Breakfast Payment,818
http://statistics.data.gov.uk/id/local-authority/12UE,Huntingdonshire District Council,01/03/2012,99817,1458,Elephant & Castle Freehouse & Motel,CR401969,Accommodation For Homeless,Bed & Breakfast Payment,818
http://statistics.data.gov.uk/id/local-authority/12UE,Huntingdonshire District Council,29/03/2012,101642,1404,Elephant & Castle Freehouse & Motel,CR401969,Accommodation For Homeless,Bed & Breakfast Payment,818
http://statistics.data.gov.uk/id/local-authority/12UE,Huntingdonshire District Council,01/03/2012,99810,1946.81,King Street Housing Society,CR409301,Accommodation For Homeless,Management Charge,733
http://statistics.data.gov.uk/id/local-authority/12UE,Huntingdonshire District Council,29/03/2012,101245,1181.81,King Street Housing Society,CR409301,Accommodation For Homeless,Management Charge,733
http://statistics.data.gov.uk/id/local-authority/12UE,Huntingdonshire District Council,08/03/2012,99746,5100,Cambridge Environmental Research Consultants,CR479994,Air Quality,Software,206
http://statistics.data.gov.uk/id/local-authority/12UE,Huntingdonshire District Council,08/03/2012,99201,1630.8,Met Office Fastnet 1,CR412131,Air Quality,Software,206
http://statistics.data.gov.uk/id/local-authority/12UE,Huntingdonshire District Council,23/03/2012,531788,420,Post Office  Ltd,CR008902,Animal Welfare,Vehicle Licence,609
http://statistics.data.gov.uk/id/local-authority/12UE,Huntingdonshire District Council,29/03/2012,101666,764.28,Opus International Consultants,CR479831,Building Control Applications,Consultants,711
http://statistics.data.gov.uk/id/local-authority/12UE,Huntingdonshire District Council,22/03/2012,531752,1737.6,St Edmundsbury Borough Council,CR407131,Building Control Other,Subcontractors,777
http://statistics.data.gov.uk/id/local-authority/12UE,Huntingdonshire District Council,15/03/2012,99277,606,G Ferrara Ltd,CR478949,Bus Shelters,Sitework,359
http://statistics.data.gov.uk/id/local-authority/12UE,Huntingdonshire District Council,01/03/2012,99327,744,Primesight  Ltd,CR132710,Bus Shelters,Sitework,359
http://statistics.data.gov.uk/id/local-authority/12UE,Huntingdonshire District Council,01/03/2012,99208,695.04,Primesight  Ltd,CR132710,Bus Shelters,Sitework,359
http://statistics.data.gov.uk/id/local-authority/12UE,Huntingdonshire District Council,01/03/2012,99332,504,Primesight  Ltd,CR132710,Bus Shelters,Sitework,359
http://statistics.data.gov.uk/id/local-authority/12UE,Huntingdonshire District Council,08/03/2012,98921,1068,Beebys Limited,CR415822,Bus Stations,Building Cleaning Internal,440
http://statistics.data.gov.uk/id/local-authority/12UE,Huntingdonshire District Council,29/03/2012,100355,1038,Beebys Limited,CR415822,Bus Stations,Building Cleaning Internal,440
http://statistics.data.gov.uk/id/local-authority/12UE,Huntingdonshire District Council,22/03/2012,100689,1855.09,Swalec,CR407130,Bus Stations,Electricity,420
http://statistics.data.gov.uk/id/local-authority/12UE,Huntingdonshire District Council,29/03/2012,101800,18000,Deloitte,CR416667,Business & Enterprise Support,Consultation And Surveys,770
http://statistics.data.gov.uk/id/local-authority/12UE,Huntingdonshire District Council,15/03/2012,99033,600,Action For Market Towns,CR031464,Business & Enterprise Support,Corporate Subscriptions,754
http://statistics.data.gov.uk/id/local-authority/12UE,Huntingdonshire District Council,22/03/2012,101356,3600,Archant Herts And Cambs,CR403271,Business & Enterprise Support,Grants (Paid Out),800
http://statistics.data.gov.uk/id/local-authority/12UE,Huntingdonshire District Council,22/03/2012,529907,1000,Young Enterprise (East Of England),CR478013,Business & Enterprise Support,Grants (Paid Out),800
http://statistics.data.gov.uk/id/local-authority/12UE,Huntingdonshire District Council,22/03/2012,99769,4039.14,Icon,CR453800,Business & Enterprise Support,Promotional Items,569
http://statistics.data.gov.uk/id/local-authority/12UE,Huntingdonshire District Council,01/03/2012,98934,2807.81,Quadrant Security Group,CR027775,C C T V,Equipment Maintenance,511
http://statistics.data.gov.uk/id/local-authority/12UE,Huntingdonshire District Council,29/03/2012,100266,2807.81,Quadrant Security Group,CR027775,C C T V,Equipment Maintenance,511
http://statistics.data.gov.uk/id/local-authority/12UE,Huntingdonshire District Council,29/03/2012,99805,1032,Emqc Ltd,CR477882,Call Centre,Benchmarking,707
http://statistics.data.gov.uk/id/local-authority/12UE,Huntingdonshire District Council,01/03/2012,98401,670.8,Mystery Shoppers Ltd,CR413512,Call Centre,Benchmarking,707
http://statistics.data.gov.uk/id/local-authority/12UE,Huntingdonshire District Council,01/03/2012,98866,19.76,T N T Post Midlands Ltd,CR479965,Call Centre,Postage,231
http://statistics.data.gov.uk/id/local-authority/12UE,Huntingdonshire District Council,22/03/2012,101130,658.57,Peter Lockyer Advertising Ltd,CR033030,Call Centre,Recruitment - Advertising,120
http://statistics.data.gov.uk/id/local-authority/12UE,Huntingdonshire District Council,29/03/2012,99871,741.72,Mhb Services,CR417269,Car Park Assets,Sitework,359
http://statistics.data.gov.uk/id/local-authority/12UE,Huntingdonshire District Council,29/03/2012,101667,741.72,Mhb Services,CR417269,Car Park Assets,Sitework,359
http://statistics.data.gov.uk/id/local-authority/12UE,Huntingdonshire District Council,01/03/2012,98859,3882.04,Cale Briparc Ltd,CR401137,Car Park Management,Car Park Machines,522
http://statistics.data.gov.uk/id/local-authority/12UE,Huntingdonshire District Council,01/03/2012,99005,4717.06,G4s Cashservices Uk Ltd,CR407133,Car Park Management,Cash Collection,702
http://statistics.data.gov.uk/id/local-authority/12UE,Huntingdonshire District Council,29/03/2012,101697,4690.26,G4s Cashservices Uk Ltd,CR407133,Car Park Management,Cash Collection,702
http://statistics.data.gov.uk/id/local-authority/12UE,Huntingdonshire District Council,22/03/2012,100683,639.24,Swalec,CR407130,Car Park Management,Electricity,420
http://statistics.data.gov.uk/id/local-authority/12UE,Huntingdonshire District Council,22/03/2012,100687,504,Swalec,CR407130,Car Park Management,Electricity,420
http://statistics.data.gov.uk/id/local-authority/12UE,Huntingdonshire District Council,01/03/2012,98511,1306.8,Shopsafe Ltd,CR411150,Car Park Management,Mobile Telephones & Radios,241
http://statistics.data.gov.uk/id/local-authority/12UE,Huntingdonshire District Council,29/03/2012,100165,1612.67,Oastlodge Ltd,CR479114,Car Park Management,Rent,410
http://statistics.data.gov.uk/id/local-authority/12UE,Huntingdonshire District Council,29/03/2012,532019,691.2,Huntingdon Town Council,CR103190,Car Park Management,Subcontractors,777
http://statistics.data.gov.uk/id/local-authority/12UE,Huntingdonshire District Council,23/03/2012,531788,630,Post Office  Ltd,CR008902,Car Park Management,Vehicle Licence,609
http://statistics.data.gov.uk/id/local-authority/12UE,Huntingdonshire District Council,22/03/2012,99785,4393.6,Cale Briparc Ltd,CR401137,Car Park Policy,Sitework,359
http://statistics.data.gov.uk/id/local-authority/12UE,Huntingdonshire District Council,01/03/2012,98187,1060.99,J Breheny Contractors Ltd,CR000314,Car Park Policy,Sitework,359
http://statistics.data.gov.uk/id/local-authority/12UE,Huntingdonshire District Council,15/03/2012,99799,110597.17,J Breheny Contractors Ltd,CR000314,Car Parks Capital,Building Construction,300
http://statistics.data.gov.uk/id/local-authority/12UE,Huntingdonshire District Council,29/03/2012,101557,4496.1,J Breheny Contractors Ltd,CR000314,Car Parks Capital,Building Construction,300
http://statistics.data.gov.uk/id/local-authority/12UE,Huntingdonshire District Council,22/03/2012,100602,8512.67,Deloitte,CR416667,Car Parks Capital,Consultants,711
http://statistics.data.gov.uk/id/local-authority/12UE,Huntingdonshire District Council,29/03/2012,101332,900,Jba Construction & Management Services,CR416716,Car Parks Capital,Consultants,711
http://statistics.data.gov.uk/id/local-authority/12UE,Huntingdonshire District Council,15/03/2012,99196,462,Mhb Services,CR417269,Car Parks Capital,Gen Building Mtce - Responsive,303
http://statistics.data.gov.uk/id/local-authority/12UE,Huntingdonshire District Council,29/03/2012,100596,36995.96,John Henry & Sons,CR031967,Car Parks Capital,Sitework,359
http://statistics.data.gov.uk/id/local-authority/12UE,Huntingdonshire District Council,22/03/2012,99801,30857.15,John Henry & Sons,CR031967,Car Parks Capital,Sitework,359
http://statistics.data.gov.uk/id/local-authority/12UE,Huntingdonshire District Council,08/03/2012,98941,29892.8,John Henry & Sons,CR031967,Car Parks Capital,Sitework,359
http://statistics.data.gov.uk/id/local-authority/12UE,Huntingdonshire District Council,15/03/2012,99196,48,Mhb Services,CR417269,Car Parks Capital,Sitework,359
http://statistics.data.gov.uk/id/local-authority/12UE,Huntingdonshire District Council,01/03/2012,98659,12000,Oxford  Archaeology East,CR478885,Car Parks Capital,Sitework,359
http://statistics.data.gov.uk/id/local-authority/12UE,Huntingdonshire District Council,29/03/2012,100599,6000,Oxford  Archaeology East,CR478885,Car Parks Capital,Sitework,359
http://statistics.data.gov.uk/id/local-authority/12UE,Huntingdonshire District Council,15/03/2012,99223,589.2,Legal Network Tv Ltd,CR031902,Central & Democratic Serv Mu,Books & Publications,250
http://statistics.data.gov.uk/id/local-authority/12UE,Huntingdonshire District Council,15/03/2012,99224,660,Chambers Of Mark Platts-Mills Qc,CR453899,Central & Democratic Serv Mu,Legal Fees,729
http://statistics.data.gov.uk/id/local-authority/12UE,Huntingdonshire District Council,29/03/2012,101367,809.09,Lex Autolease Ltd,CR410751,Central & Democratic Serv Mu,Vehicle Accident Damage,623
http://statistics.data.gov.uk/id/local-authority/12UE,Huntingdonshire District Council,29/03/2012,100611,5579.42,Lex Autolease Ltd,CR410751,Central & Democratic Serv Mu,Vehicle Operating Lease,601
http://statistics.data.gov.uk/id/local-authority/12UE,Huntingdonshire District Council,29/03/2012,101261,504,Jba Construction & Management Services,CR416716,Chief Executive & C O M T,Consultants,711
http://statistics.data.gov.uk/id/local-authority/12UE,Huntingdonshire District Council,08/03/2012,529237,1837.87,Civica Uk Ltd,CR415826,Community Safety,Software,206
http://statistics.data.gov.uk/id/local-authority/12UE,Huntingdonshire District Council,22/03/2012,99889,822,Aea Technology Plc,CR403952,Contaminated Land,Conferences,137
http://statistics.data.gov.uk/id/local-authority/12UE,Huntingdonshire District Council,01/03/2012,98356,3996,Soil Technics,CR453729,Contaminated Land,Laboratory Services,725
http://statistics.data.gov.uk/id/local-authority/12UE,Huntingdonshire District Council,29/03/2012,101122,1101.6,Cambridge Newspapers Ltd,CR000072,Council Tax,Advertising - Statutory Notice,257
http://statistics.data.gov.uk/id/local-authority/12UE,Huntingdonshire District Council,01/03/2012,98135,723.42,Newlyn Plc,CR409114,Council Tax,Bailiffs,703
http://statistics.data.gov.uk/id/local-authority/12UE,Huntingdonshire District Council,08/03/2012,98612,690.66,Newlyn Plc,CR409114,Council Tax,Bailiffs,703
http://statistics.data.gov.uk/id/local-authority/12UE,Huntingdonshire District Council,22/03/2012,99777,516.16,Newlyn Plc,CR409114,Council Tax,Bailiffs,703
http://statistics.data.gov.uk/id/local-authority/12UE,Huntingdonshire District Council,29/03/2012,99805,300,Emqc Ltd,CR477882,Customer Service Centres,Benchmarking,707
http://statistics.data.gov.uk/id/local-authority/12UE,Huntingdonshire District Council,01/03/2012,98401,151.2,Mystery Shoppers Ltd,CR413512,Customer Service Centres,Benchmarking,707
http://statistics.data.gov.uk/id/local-authority/12UE,Huntingdonshire District Council,01/03/2012,99006,372.04,G4s Cashservices Uk Ltd,CR407133,Customer Service Centres,Cash Collection,702
http://statistics.data.gov.uk/id/local-authority/12UE,Huntingdonshire District Council,29/03/2012,101815,1488.16,G4s Cashservices Uk Ltd,CR407133,Customer Service Centres,Cash Collection,702
http://statistics.data.gov.uk/id/local-authority/12UE,Huntingdonshire District Council,29/03/2012,530871,2677.5,White Commercial Surveyors Ltd,CR412242,Customer Service Centres,Rent,410
http://statistics.data.gov.uk/id/local-authority/12UE,Huntingdonshire District Council,15/03/2012,100412,3250,Capita,CR481146,Customer Service Centres,Software,206
http://statistics.data.gov.uk/id/local-authority/12UE,Huntingdonshire District Council,01/03/2012,98886,0.34,Virgin Media Business,CR033120,Customer Service Centres,Telephone Charges,240
http://statistics.data.gov.uk/id/local-authority/12UE,Huntingdonshire District Council,29/03/2012,101680,35332.75,Drivers  Jonas Deloitte,CR400573,Dc Application Processing,Consultants,711
http://statistics.data.gov.uk/id/local-authority/12UE,Huntingdonshire District Council,29/03/2012,101681,8532.29,Drivers  Jonas Deloitte,CR400573,Dc Application Processing,Consultants,711
http://statistics.data.gov.uk/id/local-authority/12UE,Huntingdonshire District Council,01/03/2012,98616,4120,Mr G H Jones,CR453833,Dc Application Processing,Consultants,711
http://statistics.data.gov.uk/id/local-authority/12UE,Huntingdonshire District Council,01/03/2012,99870,1800,Planning Officers Society,CR477409,Dc Application Processing,Corporate Subscriptions,754
http://statistics.data.gov.uk/id/local-authority/12UE,Huntingdonshire District Council,22/03/2012,101351,21838.36,Snr Denton,CR453969,Dc Application Processing,Legal Fees,729
http://statistics.data.gov.uk/id/local-authority/12UE,Huntingdonshire District Council,22/03/2012,100319,820.8,Neopost,CR028326,Document Centre,Equipment Maintenance,511
http://statistics.data.gov.uk/id/local-authority/12UE,Huntingdonshire District Council,01/03/2012,98865,1035.17,Oce Uk Limited,CR409013,Document Centre,Equipment Maintenance,511
http://statistics.data.gov.uk/id/local-authority/12UE,Huntingdonshire District Council,29/03/2012,100267,1035.17,Oce Uk Limited,CR409013,Document Centre,Equipment Maintenance,511
http://statistics.data.gov.uk/id/local-authority/12UE,Huntingdonshire District Council,08/03/2012,98876,658.68,Antalis Ltd,CR479468,Document Centre,Paper,562
http://statistics.data.gov.uk/id/local-authority/12UE,Huntingdonshire District Council,22/03/2012,100261,1099.24,Xerox Office Supplies,CR481184,Document Centre,Paper,562
http://statistics.data.gov.uk/id/local-authority/12UE,Huntingdonshire District Council,15/03/2012,99864,1327.16,Royal Mail,CR027083,Document Centre,Postage,231
http://statistics.data.gov.uk/id/local-authority/12UE,Huntingdonshire District Council,01/03/2012,98866,949,T N T Post Midlands Ltd,CR479965,Document Centre,Postage,231
http://statistics.data.gov.uk/id/local-authority/12UE,Huntingdonshire District Council,08/03/2012,99216,1108.46,T N T Post Midlands Ltd,CR479965,Document Centre,Postage,231
http://statistics.data.gov.uk/id/local-authority/12UE,Huntingdonshire District Council,22/03/2012,100265,864.21,T N T Post Midlands Ltd,CR479965,Document Centre,Postage,231
http://statistics.data.gov.uk/id/local-authority/12UE,Huntingdonshire District Council,15/03/2012,99464,1075.98,T N T Post Midlands Ltd,CR479965,Document Centre,Postage,231
http://statistics.data.gov.uk/id/local-authority/12UE,Huntingdonshire District Council,29/03/2012,100435,945.36,T N T Post Midlands Ltd,CR479965,Document Centre,Postage,231
http://statistics.data.gov.uk/id/local-authority/12UE,Huntingdonshire District Council,01/03/2012,99509,1228.8,Surrey Envelopes,CR482428,Document Centre,Subcontractors,777
http://statistics.data.gov.uk/id/local-authority/12UE,Huntingdonshire District Council,01/03/2012,99514,567.84,West Country Paper,CR400581,Document Centre,Subcontractors,777
http://statistics.data.gov.uk/id/local-authority/12UE,Huntingdonshire District Council,15/03/2012,100274,2396.7,Staffline Group,CR416827,Domestic Refuse,Hired Staff,100
http://statistics.data.gov.uk/id/local-authority/12UE,Huntingdonshire District Council,15/03/2012,100272,2275.74,Staffline Group,CR416827,Domestic Refuse,Hired Staff,100
http://statistics.data.gov.uk/id/local-authority/12UE,Huntingdonshire District Council,08/03/2012,99262,1706.51,Staffline Group,CR416827,Domestic Refuse,Hired Staff,100
http://statistics.data.gov.uk/id/local-authority/12UE,Huntingdonshire District Council,22/03/2012,100767,1630.82,Staffline Group,CR416827,Domestic Refuse,Hired Staff,100
http://statistics.data.gov.uk/id/local-authority/12UE,Huntingdonshire District Council,08/03/2012,99264,1088.21,Staffline Group,CR416827,Domestic Refuse,Hired Staff,100
http://statistics.data.gov.uk/id/local-authority/12UE,Huntingdonshire District Council,01/03/2012,98971,964.55,Staffline Group,CR416827,Domestic Refuse,Hired Staff,100
http://statistics.data.gov.uk/id/local-authority/12UE,Huntingdonshire District Council,22/03/2012,100760,940.63,Staffline Group,CR416827,Domestic Refuse,Hired Staff,100
http://statistics.data.gov.uk/id/local-authority/12UE,Huntingdonshire District Council,29/03/2012,100763,932.39,Staffline Group,CR416827,Domestic Refuse,Hired Staff,100
http://statistics.data.gov.uk/id/local-authority/12UE,Huntingdonshire District Council,22/03/2012,100753,8970.16,Gelpack Excelsior Limited,CR002966,Domestic Refuse,Refuse Sacks,552
http://statistics.data.gov.uk/id/local-authority/12UE,Huntingdonshire District Council,01/03/2012,98609,2140.09,Bandvulc Tyres Ltd,CR406810,Domestic Refuse,Tyres,630
http://statistics.data.gov.uk/id/local-authority/12UE,Huntingdonshire District Council,29/03/2012,100746,1785.3,Bandvulc Tyres Ltd,CR406810,Domestic Refuse,Tyres,630
http://statistics.data.gov.uk/id/local-authority/12UE,Huntingdonshire District Council,01/03/2012,99015,723.36,Burnt Tree Group,CR480897,Domestic Refuse,Vehicle Hire,607
http://statistics.data.gov.uk/id/local-authority/12UE,Huntingdonshire District Council,29/03/2012,100935,700.56,Burnt Tree Group,CR480897,Domestic Refuse,Vehicle Hire,607
http://statistics.data.gov.uk/id/local-authority/12UE,Huntingdonshire District Council,23/03/2012,531788,1300,Post Office  Ltd,CR008902,Domestic Refuse,Vehicle Licence,609
http://statistics.data.gov.uk/id/local-authority/12UE,Huntingdonshire District Council,22/03/2012,100293,505.81,Terberg Matec Uk Ltd,CR402183,Domestic Refuse,Vehicle Maintenance,619
http://statistics.data.gov.uk/id/local-authority/12UE,Huntingdonshire District Council,29/03/2012,101576,436.66,Dennis Eagle Ltd,CR000200,Domestic Refuse,Vehicle Parts,625
http://statistics.data.gov.uk/id/local-authority/12UE,Huntingdonshire District Council,29/03/2012,101575,1004.65,Dennis Eagle Ltd,CR000200,Domestic Refuse,Vehicle Parts,625
http://statistics.data.gov.uk/id/local-authority/12UE,Huntingdonshire District Council,29/03/2012,100237,730.79,Dennis Eagle Ltd,CR000200,Domestic Refuse,Vehicle Parts,625
http://statistics.data.gov.uk/id/local-authority/12UE,Huntingdonshire District Council,01/03/2012,98499,627.24,M & N Vehicle Services,CR480661,Domestic Refuse,Vehicle Parts,625
http://statistics.data.gov.uk/id/local-authority/12UE,Huntingdonshire District Council,01/03/2012,98496,1237.73,Terberg Matec Uk Ltd,CR402183,Domestic Refuse,Vehicle Parts,625
http://statistics.data.gov.uk/id/local-authority/12UE,Huntingdonshire District Council,01/03/2012,98497,799.92,Terberg Matec Uk Ltd,CR402183,Domestic Refuse,Vehicle Parts,625
http://statistics.data.gov.uk/id/local-authority/12UE,Huntingdonshire District Council,08/03/2012,100167,1356.6,Ecocleen Services Limited,CR406985,E F H And Depots,Building Cleaning Internal,440
http://statistics.data.gov.uk/id/local-authority/12UE,Huntingdonshire District Council,22/03/2012,101360,5778.44,E-On Energy,CR416430,E F H And Depots,Electricity,420
http://statistics.data.gov.uk/id/local-authority/12UE,Huntingdonshire District Council,29/03/2012,101548,899.73,British Gas Business,CR478619,E F H And Depots,Gas,421
http://statistics.data.gov.uk/id/local-authority/12UE,Huntingdonshire District Council,01/03/2012,99259,853.13,E-On Energy,CR416430,E F H And Depots,Gas,421
http://statistics.data.gov.uk/id/local-authority/12UE,Huntingdonshire District Council,22/03/2012,101238,818.92,E-On Energy,CR416430,E F H And Depots,Gas,421
http://statistics.data.gov.uk/id/local-authority/12UE,Huntingdonshire District Council,22/03/2012,100199,880.74,Kershaw Mechanical Services Ltd,CR480268,E F H And Depots,Gen Building Mtce - Responsive,303
http://statistics.data.gov.uk/id/local-authority/12UE,Huntingdonshire District Council,29/03/2012,100196,786.96,Kershaw Mechanical Services Ltd,CR480268,E F H And Depots,Gen Building Mtce - Responsive,303
http://statistics.data.gov.uk/id/local-authority/12UE,Huntingdonshire District Council,01/03/2012,98357,1667.08,Kershaw Mechanical Services Ltd,CR480268,E F H And Depots,Plant & Equipment Maintenance,380
http://statistics.data.gov.uk/id/local-authority/12UE,Huntingdonshire District Council,29/03/2012,100287,726.91,Kershaw Mechanical Services Ltd,CR480268,E F H And Depots,Plant & Equipment Maintenance,380
http://statistics.data.gov.uk/id/local-authority/12UE,Huntingdonshire District Council,15/03/2012,99463,1047.17,Royal Mail,CR027083,Elections,Postage,231
http://statistics.data.gov.uk/id/local-authority/12UE,Huntingdonshire District Council,01/03/2012,98866,1523.54,T N T Post Midlands Ltd,CR479965,Elections,Postage,231
http://statistics.data.gov.uk/id/local-authority/12UE,Huntingdonshire District Council,08/03/2012,99216,72.77,T N T Post Midlands Ltd,CR479965,Elections,Postage,231
http://statistics.data.gov.uk/id/local-authority/12UE,Huntingdonshire District Council,22/03/2012,100265,299.88,T N T Post Midlands Ltd,CR479965,Elections,Postage,231
http://statistics.data.gov.uk/id/local-authority/12UE,Huntingdonshire District Council,15/03/2012,99464,22.58,T N T Post Midlands Ltd,CR479965,Elections,Postage,231
http://statistics.data.gov.uk/id/local-authority/12UE,Huntingdonshire District Council,29/03/2012,100435,12.24,T N T Post Midlands Ltd,CR479965,Elections,Postage,231
http://statistics.data.gov.uk/id/local-authority/12UE,Huntingdonshire District Council,22/03/2012,100601,2605.45,District Surveyors Association,CR405731,Engineering & Arch M Us,Corporate Subscriptions,754
http://statistics.data.gov.uk/id/local-authority/12UE,Huntingdonshire District Council,15/03/2012,99783,148.8,Coel,CR452717,Engineering & Arch M Us,Delivery Charges,232
http://statistics.data.gov.uk/id/local-authority/12UE,Huntingdonshire District Council,08/03/2012,99748,2988.08,Peter Lockyer Advertising Ltd,CR033030,Engineering & Arch M Us,Recruitment - Advertising,120
http://statistics.data.gov.uk/id/local-authority/12UE,Huntingdonshire District Council,08/03/2012,99741,4349.95,Automotive Leasing,CR406882,Engineering & Arch M Us,Vehicle Operating Lease,601
http://statistics.data.gov.uk/id/local-authority/12UE,Huntingdonshire District Council,29/03/2012,99743,-558.58,Lex Autolease Ltd,CR410751,Engineering & Arch M Us,Vehicle Operating Lease,601
http://statistics.data.gov.uk/id/local-authority/12UE,Huntingdonshire District Council,01/03/2012,98850,1315.55,Combined Harvesters Ltd,CR453881,Environment Equipment Capital,Equipment Purchases,500
http://statistics.data.gov.uk/id/local-authority/12UE,Huntingdonshire District Council,29/03/2012,100381,2265.48,Shawcity Limited,CR453928,Environmental Health General,Equipment Purchases,500
http://statistics.data.gov.uk/id/local-authority/12UE,Huntingdonshire District Council,08/03/2012,529237,11027.21,Civica Uk Ltd,CR415826,Environmental Health General,Software,206
http://statistics.data.gov.uk/id/local-authority/12UE,Huntingdonshire District Council,22/03/2012,100280,1703.28,Iris Legal Solutions,CR487228,Environmental Health General,Software,206
http://statistics.data.gov.uk/id/local-authority/12UE,Huntingdonshire District Council,08/03/2012,98930,714,Campbell Associates,CR407137,Environmental Health M Us,Training - Operational,131
http://statistics.data.gov.uk/id/local-authority/12UE,Huntingdonshire District Council,08/03/2012,99970,4575.82,Deloitte,CR416667,Estates Properties Capital,Consultants,711
http://statistics.data.gov.uk/id/local-authority/12UE,Huntingdonshire District Council,22/03/2012,100626,24000,Pricewaterhouse Coopers Llp,CR487210,External Audit,Audit Fees,701
http://statistics.data.gov.uk/id/local-authority/12UE,Huntingdonshire District Council,15/03/2012,100332,28031.05,Advanced Business Solutions,CR032921,Financial Services,Software,206
http://statistics.data.gov.uk/id/local-authority/12UE,Huntingdonshire District Council,15/03/2012,100335,1907.27,Advanced Business Solutions,CR032921,Financial Services,Software,206
http://statistics.data.gov.uk/id/local-authority/12UE,Huntingdonshire District Council,15/03/2012,100426,5490,Cipfa,CR480451,Financial Services Mus,Books & Publications,250
http://statistics.data.gov.uk/id/local-authority/12UE,Huntingdonshire District Council,29/03/2012,100425,939.6,Public Sector Consultants,CR479754,Financial Services Mus,Consultants,711
http://statistics.data.gov.uk/id/local-authority/12UE,Huntingdonshire District Council,22/03/2012,99378,3067.2,Cipfa Business Limited,CR480088,Financial Services Mus,Corporate Subscriptions,754
http://statistics.data.gov.uk/id/local-authority/12UE,Huntingdonshire District Council,29/03/2012,99967,1200,Magnet Solutions,CR416903,Financial Services Mus,Enquiries,723
http://statistics.data.gov.uk/id/local-authority/12UE,Huntingdonshire District Council,15/03/2012,100627,1084.56,Peterborough City Council,CR000619,Financial Services Mus,Hired Staff,100
http://statistics.data.gov.uk/id/local-authority/12UE,Huntingdonshire District Council,01/03/2012,98479,1879.2,Public Sector Consultants,CR479754,Financial Services Mus,Hired Staff,100
http://statistics.data.gov.uk/id/local-authority/12UE,Huntingdonshire District Council,22/03/2012,99521,596.34,The Ipc Group,CR482404,Financial Services Mus,Microfilming & Scanning,230
http://statistics.data.gov.uk/id/local-authority/12UE,Huntingdonshire District Council,08/03/2012,99217,1074,Auditware Systems Limited,CR40190,Financial Services Mus,Software,206
http://statistics.data.gov.uk/id/local-authority/12UE,Huntingdonshire District Council,29/03/2012,100625,1200,Rsm Tenon,CR480303,Financial Services Mus,Software,206
http://statistics.data.gov.uk/id/local-authority/12UE,Huntingdonshire District Council,15/03/2012,99719,4560,Cipfa,CR000107,Financial Services Mus,Training - Professional,130
http://statistics.data.gov.uk/id/local-authority/12UE,Huntingdonshire District Council,08/03/2012,530882,1649.16,Tecalemit Garage Equipment Co Ltd,CR477683,Fleet Management,Equipment Maintenance,511
http://statistics.data.gov.uk/id/local-authority/12UE,Huntingdonshire District Council,01/03/2012,98924,698.92,United Wipes,CR477773,Fleet Management,Materials,550
http://statistics.data.gov.uk/id/local-authority/12UE,Huntingdonshire District Council,01/03/2012,98404,936.45,Days Contract Hire,CR417030,Fleet Management,Vehicle Finance Leases,602
http://statistics.data.gov.uk/id/local-authority/12UE,Huntingdonshire District Council,15/03/2012,100594,936.45,Days Contract Hire,CR417030,Fleet Management,Vehicle Finance Leases,602
http://statistics.data.gov.uk/id/local-authority/12UE,Huntingdonshire District Council,01/03/2012,98404,93.36,Days Contract Hire,CR417030,Fleet Management,Vehicle Service,621
http://statistics.data.gov.uk/id/local-authority/12UE,Huntingdonshire District Council,15/03/2012,100594,93.36,Days Contract Hire,CR417030,Fleet Management,Vehicle Service,621
http://statistics.data.gov.uk/id/local-authority/12UE,Huntingdonshire District Council,08/03/2012,98927,653.2,Osborne Richardson,CR482551,Food Safety,Hired Staff,100
http://statistics.data.gov.uk/id/local-authority/12UE,Huntingdonshire District Council,01/03/2012,98390,575.04,Osborne Richardson,CR482551,Food Safety,Hired Staff,100
http://statistics.data.gov.uk/id/local-authority/12UE,Huntingdonshire District Council,22/03/2012,99891,539.1,Osborne Richardson,CR482551,Food Safety,Hired Staff,100
http://statistics.data.gov.uk/id/local-authority/12UE,Huntingdonshire District Council,29/03/2012,100262,539.1,Osborne Richardson,CR482551,Food Safety,Hired Staff,100
http://statistics.data.gov.uk/id/local-authority/12UE,Huntingdonshire District Council,01/03/2012,99738,7137.9,Computershare Vouchers Ltd,CR412205,General Creditors,Deductions Paid To Third Party,26
http://statistics.data.gov.uk/id/local-authority/12UE,Huntingdonshire District Council,29/03/2012,101695,7082.9,Computershare Vouchers Ltd,CR412205,General Creditors,Deductions Paid To Third Party,26
http://statistics.data.gov.uk/id/local-authority/12UE,Huntingdonshire District Council,01/03/2012,98818,3626.4,Arthur Ibbett Ltd,CR000430,Grounds Maintenance (Combined),Equipment Purchases,500
http://statistics.data.gov.uk/id/local-authority/12UE,Huntingdonshire District Council,01/03/2012,98506,2294.53,Arthur Ibbett Ltd,CR000430,Grounds Maintenance (Combined),Equipment Purchases,500
http://statistics.data.gov.uk/id/local-authority/12UE,Huntingdonshire District Council,23/03/2012,531788,420,Post Office  Ltd,CR008902,Grounds Maintenance (Combined),Vehicle Licence,609
http://statistics.data.gov.uk/id/local-authority/12UE,Huntingdonshire District Council,01/03/2012,98506,143.8,Arthur Ibbett Ltd,CR000430,Grounds Maintenance (Combined),Vehicle Oil,626
http://statistics.data.gov.uk/id/local-authority/12UE,Huntingdonshire District Council,01/03/2012,98530,1141.8,Marshall Motor Group,CR009641,Grounds Maintenance (Combined),Vehicle Parts,625
http://statistics.data.gov.uk/id/local-authority/12UE,Huntingdonshire District Council,01/03/2012,98456,2660.4,Learning Pool Limited,CR416813,Head Of Imd,Training - I T,134
http://statistics.data.gov.uk/id/local-authority/12UE,Huntingdonshire District Council,01/03/2012,98351,585,It Talent Solutions Ltd,CR482676,Helpdesk,I C T Services,731
http://statistics.data.gov.uk/id/local-authority/12UE,Huntingdonshire District Council,29/03/2012,531368,1631.52,Eacs Ltd,CR404499,Helpdesk,Software,206
http://statistics.data.gov.uk/id/local-authority/12UE,Huntingdonshire District Council,08/03/2012,98658,5937.12,Frontrange Solutions,CR403465,Helpdesk,Software,206
http://statistics.data.gov.uk/id/local-authority/12UE,Huntingdonshire District Council,29/03/2012,101821,1680,Phoenix Software Ltd,CR031918,Helpdesk,Software,206
http://statistics.data.gov.uk/id/local-authority/12UE,Huntingdonshire District Council,29/03/2012,100193,586.71,King Bros,CR411339,Hinchingbrooke Country Park,Catering Materials,559
http://statistics.data.gov.uk/id/local-authority/12UE,Huntingdonshire District Council,22/03/2012,100681,970.95,Swalec,CR407130,Hinchingbrooke Country Park,Electricity,420
http://statistics.data.gov.uk/id/local-authority/12UE,Huntingdonshire District Council,22/03/2012,100693,764.29,Swalec,CR407130,Hinchingbrooke Country Park,Electricity,420
http://statistics.data.gov.uk/id/local-authority/12UE,Huntingdonshire District Council,01/03/2012,99732,525,Peter Stopford Tree Specialist,CR478494,Hinchingbrooke Country Park,Sitework,359
http://statistics.data.gov.uk/id/local-authority/12UE,Huntingdonshire District Council,22/03/2012,99733,525,Peter Stopford Tree Specialist,CR478494,Hinchingbrooke Country Park,Sitework,359
http://statistics.data.gov.uk/id/local-authority/12UE,Huntingdonshire District Council,22/03/2012,530866,1250,R C Fletcher,CR477425,Hinchingbrooke Country Park,Training - Operational,131
http://statistics.data.gov.uk/id/local-authority/12UE,Huntingdonshire District Council,22/03/2012,100189,504,Biffa Waste Services Ltd,CR416469,Hinchingbrooke Country Park,Waste Disposal,763
http://statistics.data.gov.uk/id/local-authority/12UE,Huntingdonshire District Council,29/03/2012,100747,2120.98,Dell Computer Corporation,CR408320,Home Improvement Agency,Other I T Hardware,203
http://statistics.data.gov.uk/id/local-authority/12UE,Huntingdonshire District Council,29/03/2012,100634,1573.31,Dell Computer Corporation,CR408320,Home Improvement Agency,Other I T Hardware,203
http://statistics.data.gov.uk/id/local-authority/12UE,Huntingdonshire District Council,08/03/2012,529237,6432.54,Civica Uk Ltd,CR415826,Home Improvement Agency,Software,206
http://statistics.data.gov.uk/id/local-authority/12UE,Huntingdonshire District Council,29/03/2012,100428,3361.2,Comtec,CR480140,Home Improvement Agency,Software,206
http://statistics.data.gov.uk/id/local-authority/12UE,Huntingdonshire District Council,29/03/2012,531368,613.8,Eacs Ltd,CR404499,Home Improvement Agency,Software,206
http://statistics.data.gov.uk/id/local-authority/12UE,Huntingdonshire District Council,29/03/2012,101208,696,Alexanders,CR415843,Homelessness Management,Removal/Storage,750
http://statistics.data.gov.uk/id/local-authority/12UE,Huntingdonshire District Council,15/03/2012,100774,500,Alexanders Self Storage,CR478267,Homelessness Management,Removal/Storage,750
http://statistics.data.gov.uk/id/local-authority/12UE,Huntingdonshire District Council,22/03/2012,101329,525,Handy Shifter Removals Ltd,CR480280,Homelessness Management,Removal/Storage,750
http://statistics.data.gov.uk/id/local-authority/12UE,Huntingdonshire District Council,29/03/2012,100394,974.14,James Andrews Recruitment,CR453753,Housing Management Units,Hired Staff,100
http://statistics.data.gov.uk/id/local-authority/12UE,Huntingdonshire District Council,08/03/2012,98518,921.48,James Andrews Recruitment,CR453753,Housing Management Units,Hired Staff,100
http://statistics.data.gov.uk/id/local-authority/12UE,Huntingdonshire District Council,15/03/2012,98992,895.15,James Andrews Recruitment,CR453753,Housing Management Units,Hired Staff,100
http://statistics.data.gov.uk/id/local-authority/12UE,Huntingdonshire District Council,22/03/2012,99422,855.66,James Andrews Recruitment,CR453753,Housing Management Units,Hired Staff,100
http://statistics.data.gov.uk/id/local-authority/12UE,Huntingdonshire District Council,22/03/2012,101247,4188,Aha Consultancy,CR453963,Housing Management Units,Training - Operational,131
http://statistics.data.gov.uk/id/local-authority/12UE,Huntingdonshire District Council,29/03/2012,100612,4769.28,Lex Autolease Ltd,CR410751,Housing Management Units,Vehicle Operating Lease,601
http://statistics.data.gov.uk/id/local-authority/12UE,Huntingdonshire District Council,22/03/2012,101203,2564.84,Swalec,CR407130,Housing Services Other,Electricity,420
http://statistics.data.gov.uk/id/local-authority/12UE,Huntingdonshire District Council,22/03/2012,100298,2420.59,Swalec,CR407130,Housing Services Other,Electricity,420
http://statistics.data.gov.uk/id/local-authority/12UE,Huntingdonshire District Council,22/03/2012,101204,3803.46,Luminus Homes,CR401276,Housing Services Other,Gen Building Mtce - Responsive,303
http://statistics.data.gov.uk/id/local-authority/12UE,Huntingdonshire District Council,22/03/2012,100779,3827.46,Anglian Water,CR000071,Housing Services Other,Water,432
http://statistics.data.gov.uk/id/local-authority/12UE,Huntingdonshire District Council,15/03/2012,99736,2800,Rsa Environmental Health Limited,CR482415,Human Resources,Consultants,711
http://statistics.data.gov.uk/id/local-authority/12UE,Huntingdonshire District Council,08/03/2012,98887,15178.5,Northgate Information Solutions Uk Ltd,CR028925,Human Resources,Software,206
http://statistics.data.gov.uk/id/local-authority/12UE,Huntingdonshire District Council,08/03/2012,98888,858.6,Northgate Information Solutions Uk Ltd,CR028925,Human Resources,Software,206
http://statistics.data.gov.uk/id/local-authority/12UE,Huntingdonshire District Council,01/03/2012,98456,4200,Learning Pool Limited,CR416813,Human Resources,Training - Management,132
http://statistics.data.gov.uk/id/local-authority/12UE,Huntingdonshire District Council,01/03/2012,98646,3489.66,Accomplished,CR477676,Human Resources,Training - Other,136
http://statistics.data.gov.uk/id/local-authority/12UE,Huntingdonshire District Council,01/03/2012,98644,1192.86,Accomplished,CR477676,Human Resources,Training - Other,136
http://statistics.data.gov.uk/id/local-authority/12UE,Huntingdonshire District Council,22/03/2012,101132,834,Cbh Training Ltd,CR480222,Human Resources,Training - Other,136
http://statistics.data.gov.uk/id/local-authority/12UE,Huntingdonshire District Council,29/03/2012,101834,660,Fire Risk Consultancy,CR407187,Human Resources,Training - Other,136
http://statistics.data.gov.uk/id/local-authority/12UE,Huntingdonshire District Council,29/03/2012,101525,2596.73,Cambridgeshire County Council,CR006678,I T Capital,Building Construction,300
http://statistics.data.gov.uk/id/local-authority/12UE,Huntingdonshire District Council,15/03/2012,530873,1101.6,National Grid Plc,CR480413,Improvement Grants,Professional Fees,798
http://statistics.data.gov.uk/id/local-authority/12UE,Huntingdonshire District Council,01/03/2012,98505,1950,Sterling International Brokers Ltd,CR478136,Interest Received,Consultants,711
http://statistics.data.gov.uk/id/local-authority/12UE,Huntingdonshire District Council,29/03/2012,101223,3341.52,Dell Computer Corporation,CR408320,Internal Services Holding,Other I T Hardware,203
http://statistics.data.gov.uk/id/local-authority/12UE,Huntingdonshire District Council,08/03/2012,100246,80055,Building Services Design - Bsd,CR409263,Leisure Centres Capital,Consultants,711
http://statistics.data.gov.uk/id/local-authority/12UE,Huntingdonshire District Council,15/03/2012,100902,1080,Jba Construction & Management Services,CR416716,Leisure Centres Capital,Consultants,711
http://statistics.data.gov.uk/id/local-authority/12UE,Huntingdonshire District Council,29/03/2012,100708,359.26,Arthur Ibbett Ltd,CR000430,Leisure Centres Capital,Equipment Purchases,500
http://statistics.data.gov.uk/id/local-authority/12UE,Huntingdonshire District Council,01/03/2012,98980,14000.4,Bernhard'S Sports Surfaces Ltd,CR453824,Leisure Centres Capital,Gen Building Mtce - Planned,304
http://statistics.data.gov.uk/id/local-authority/12UE,Huntingdonshire District Council,15/03/2012,99966,9474,M & J Commercial Restorations Ltd,CR480453,Leisure Centres Capital,Gen Building Mtce - Planned,304
http://statistics.data.gov.uk/id/local-authority/12UE,Huntingdonshire District Council,15/03/2012,100659,3600,Fmg Consulting Ltd,CR480839,Leisure Centres Overall,Consultants,711
http://statistics.data.gov.uk/id/local-authority/12UE,Huntingdonshire District Council,15/03/2012,100838,498.72,Caci Limited,CR409683,Leisure Centres Overall,Printing (External),220
http://statistics.data.gov.uk/id/local-authority/12UE,Huntingdonshire District Council,22/03/2012,100613,385.23,Peter Lockyer Advertising Ltd,CR033030,Leisure Development,Recruitment - Advertising,120
http://statistics.data.gov.uk/id/local-authority/12UE,Huntingdonshire District Council,15/03/2012,100900,13890,Peacock Engineering,CR410043,Leisure Services Capital,Sitework,359
http://statistics.data.gov.uk/id/local-authority/12UE,Huntingdonshire District Council,01/03/2012,98375,1564.3,T C Harrison Ford,CR405072,Licences,Vehicle Inspection,618
http://statistics.data.gov.uk/id/local-authority/12UE,Huntingdonshire District Council,29/03/2012,100260,1246.28,T C Harrison Ford,CR405072,Licences,Vehicle Inspection,618
http://statistics.data.gov.uk/id/local-authority/12UE,Huntingdonshire District Council,01/03/2012,98886,34.5,Virgin Media Business,CR033120,Member Allowances & Support,I T Line Rental,248
http://statistics.data.gov.uk/id/local-authority/12UE,Huntingdonshire District Council,01/03/2012,98886,2.54,Virgin Media Business,CR033120,Member Allowances & Support,Telephone Charges,240
http://statistics.data.gov.uk/id/local-authority/12UE,Huntingdonshire District Council,08/03/2012,98932,525,Peter Stopford Tree Specialist,CR478494,Misc Countryside Sites,Sitework,359
http://statistics.data.gov.uk/id/local-authority/12UE,Huntingdonshire District Council,29/03/2012,100920,1875,Peter Stopford Tree Specialist,CR478494,Misc Countryside Sites,Tree Maintenance,357
http://statistics.data.gov.uk/id/local-authority/12UE,Huntingdonshire District Council,01/03/2012,98858,850.2,Portakabin Ltd,CR478566,Miscellaneous Grants,Hire Of Rooms,411
http://statistics.data.gov.uk/id/local-authority/12UE,Huntingdonshire District Council,29/03/2012,99974,850.2,Portakabin Ltd,CR478566,Miscellaneous Grants,Hire Of Rooms,411
http://statistics.data.gov.uk/id/local-authority/12UE,Huntingdonshire District Council,08/03/2012,98613,736.93,Newlyn Plc,CR409114,N N D R Administration,Bailiffs,703
http://statistics.data.gov.uk/id/local-authority/12UE,Huntingdonshire District Council,01/03/2012,98410,5308.8,Hp Care Pack Sales,CR478055,Network Services,Equipment Maintenance,511
http://statistics.data.gov.uk/id/local-authority/12UE,Huntingdonshire District Council,15/03/2012,100750,9396.9,Rittal Limited,CR417141,Network Services,Equipment Maintenance,511
http://statistics.data.gov.uk/id/local-authority/12UE,Huntingdonshire District Council,15/03/2012,100413,657,It Talent Solutions Ltd,CR482676,Network Services,Hired Staff,100
http://statistics.data.gov.uk/id/local-authority/12UE,Huntingdonshire District Council,29/03/2012,101721,612,It Talent Solutions Ltd,CR482676,Network Services,Hired Staff,100
http://statistics.data.gov.uk/id/local-authority/12UE,Huntingdonshire District Council,08/03/2012,100330,540,It Talent Solutions Ltd,CR482676,Network Services,Hired Staff,100
http://statistics.data.gov.uk/id/local-authority/12UE,Huntingdonshire District Council,08/03/2012,98890,522,It Talent Solutions Ltd,CR482676,Network Services,I C T Services,731
http://statistics.data.gov.uk/id/local-authority/12UE,Huntingdonshire District Council,08/03/2012,99297,2759.4,Daisy Communications Ltd,CR481089,Network Services,I T Line Rental,248
http://statistics.data.gov.uk/id/local-authority/12UE,Huntingdonshire District Council,08/03/2012,99302,3780,Virgin Media Business,CR033120,Network Services,I T Line Rental,248
http://statistics.data.gov.uk/id/local-authority/12UE,Huntingdonshire District Council,01/03/2012,98886,2335.18,Virgin Media Business,CR033120,Network Services,I T Line Rental,248
http://statistics.data.gov.uk/id/local-authority/12UE,Huntingdonshire District Council,08/03/2012,99299,1530,Virgin Media Business,CR033120,Network Services,I T Line Rental,248
http://statistics.data.gov.uk/id/local-authority/12UE,Huntingdonshire District Council,01/03/2012,98886,1121.42,Virgin Media Business,CR033120,Network Services,Telephone Charges,240
http://statistics.data.gov.uk/id/local-authority/12UE,Huntingdonshire District Council,01/03/2012,98448,720,Dal-Rod Uk Ltd,CR002782,Nightsoil Collection,Subcontractors,777
http://statistics.data.gov.uk/id/local-authority/12UE,Huntingdonshire District Council,22/03/2012,100757,576,Dal-Rod Uk Ltd,CR002782,Nightsoil Collection,Subcontractors,777
http://statistics.data.gov.uk/id/local-authority/12UE,Huntingdonshire District Council,12/03/2012,100437,338896.15,Sat Sun & Alternative Technology Ltd,CR453889,Offices Capital,Building Alterations,301
http://statistics.data.gov.uk/id/local-authority/12UE,Huntingdonshire District Council,09/03/2012,100587,338896.15,Sat Sun & Alternative Technology Ltd,CR453889,Offices Capital,Building Alterations,301
http://statistics.data.gov.uk/id/local-authority/12UE,Huntingdonshire District Council,12/03/2012,100635,-338896.15,Sat Sun & Alternative Technology Ltd,CR453889,Offices Capital,Building Alterations,301
http://statistics.data.gov.uk/id/local-authority/12UE,Huntingdonshire District Council,08/03/2012,100357,540,Rob Gwillim,CR481176,Offices Capital,Consultants,711
http://statistics.data.gov.uk/id/local-authority/12UE,Huntingdonshire District Council,01/03/2012,98439,372,Star 107.9/1,CR453808,One Leisure Huntingdon,Advertising/Promoting Services,255
http://statistics.data.gov.uk/id/local-authority/12UE,Huntingdonshire District Council,01/03/2012,98896,366,Yell Limited,CR416111,One Leisure Huntingdon,Advertising/Promoting Services,255
http://statistics.data.gov.uk/id/local-authority/12UE,Huntingdonshire District Council,22/03/2012,100823,525.9,Heineken Uk Ltd,CR032678,One Leisure Huntingdon,Bar Provisions,558
http://statistics.data.gov.uk/id/local-authority/12UE,Huntingdonshire District Council,01/03/2012,99006,297.62,G4s Cashservices Uk Ltd,CR407133,One Leisure Huntingdon,Cash Collection,702
http://statistics.data.gov.uk/id/local-authority/12UE,Huntingdonshire District Council,15/03/2012,99822,733.88,Brenntag Uk Ltd,CR015017,One Leisure Huntingdon,Chemicals,551
http://statistics.data.gov.uk/id/local-authority/12UE,Huntingdonshire District Council,29/03/2012,100879,501.82,Maskearaid Ind Supplies,CR033423,One Leisure Huntingdon,Cleaning Materials,443
http://statistics.data.gov.uk/id/local-authority/12UE,Huntingdonshire District Council,22/03/2012,101353,5596.57,E-On Energy,CR416430,One Leisure Huntingdon,Electricity,420
http://statistics.data.gov.uk/id/local-authority/12UE,Huntingdonshire District Council,22/03/2012,97237,4679.94,Swalec,CR407130,One Leisure Huntingdon,Electricity,420
http://statistics.data.gov.uk/id/local-authority/12UE,Huntingdonshire District Council,22/03/2012,97238,-15344.24,Swalec,CR407130,One Leisure Huntingdon,Electricity,420
http://statistics.data.gov.uk/id/local-authority/12UE,Huntingdonshire District Council,29/03/2012,101787,506.4,C A & N C Pedlar,CR032926,One Leisure Huntingdon,Equipment Maintenance,511
http://statistics.data.gov.uk/id/local-authority/12UE,Huntingdonshire District Council,15/03/2012,99857,608.63,Trixter Europe Ltd,CR453874,One Leisure Huntingdon,Equipment Maintenance,511
http://statistics.data.gov.uk/id/local-authority/12UE,Huntingdonshire District Council,01/03/2012,99423,1132.8,Reality Solutions Ltd,CR478969,One Leisure Huntingdon,Equipment Purchases,500
http://statistics.data.gov.uk/id/local-authority/12UE,Huntingdonshire District Council,29/03/2012,100872,618,Chris Robinson T/A Cr Design,CR416482,One Leisure Huntingdon,Gen Building Mtce - Planned,304
http://statistics.data.gov.uk/id/local-authority/12UE,Huntingdonshire District Council,29/03/2012,101795,3948,Reecer Space Limited,CR453988,One Leisure Huntingdon,Grounds Mtce Contractors,351
http://statistics.data.gov.uk/id/local-authority/12UE,Huntingdonshire District Council,01/03/2012,98649,340.34,Experian Ltd,CR401513,One Leisure Huntingdon,Licences,730
http://statistics.data.gov.uk/id/local-authority/12UE,Huntingdonshire District Council,15/03/2012,100838,498.72,Caci Limited,CR409683,One Leisure Huntingdon,Printing (External),220
http://statistics.data.gov.uk/id/local-authority/12UE,Huntingdonshire District Council,29/03/2012,531368,55.8,Eacs Ltd,CR404499,One Leisure Huntingdon,Software,206
http://statistics.data.gov.uk/id/local-authority/12UE,Huntingdonshire District Council,29/03/2012,100939,1556.04,Gladstone Mrm,CR405717,One Leisure Huntingdon,Software,206
http://statistics.data.gov.uk/id/local-authority/12UE,Huntingdonshire District Council,29/03/2012,101794,3460.6,Artificial Grass Maintenance Ltd,CR487264,One Leisure Huntingdon,Sports Equipment,524
http://statistics.data.gov.uk/id/local-authority/12UE,Huntingdonshire District Council,29/03/2012,101786,3948,Zone Leisure Technology Limited,CR479824,One Leisure Huntingdon,Sports Equipment,524
http://statistics.data.gov.uk/id/local-authority/12UE,Huntingdonshire District Council,29/03/2012,101793,1440.92,Ecocleen Services Limited,CR406985,One Leisure Huntingdon,Subcontractors,777
http://statistics.data.gov.uk/id/local-authority/12UE,Huntingdonshire District Council,01/03/2012,98886,1.04,Virgin Media Business,CR033120,One Leisure Huntingdon,Telephone Charges,240
http://statistics.data.gov.uk/id/local-authority/12UE,Huntingdonshire District Council,15/03/2012,100660,333.4,Magenta Coaching Solutions,CR480942,One Leisure Huntingdon,Training - Operational,131
http://statistics.data.gov.uk/id/local-authority/12UE,Huntingdonshire District Council,08/03/2012,99314,1339.3,Glaxosmithkline,CR010424,One Leisure Huntingdon,Vending Materials,560
http://statistics.data.gov.uk/id/local-authority/12UE,Huntingdonshire District Council,29/03/2012,100245,1093.99,Bannerbox,CR478802,One Leisure Ramsey,Advertising/Promoting Services,255
http://statistics.data.gov.uk/id/local-authority/12UE,Huntingdonshire District Council,01/03/2012,99006,74.41,G4s Cashservices Uk Ltd,CR407133,One Leisure Ramsey,Cash Collection,702
http://statistics.data.gov.uk/id/local-authority/12UE,Huntingdonshire District Council,22/03/2012,100656,1882.04,Swalec,CR407130,One Leisure Ramsey,Electricity,420
http://statistics.data.gov.uk/id/local-authority/12UE,Huntingdonshire District Council,22/03/2012,101236,1936.46,E-On Energy,CR416430,One Leisure Ramsey,Gas,421
http://statistics.data.gov.uk/id/local-authority/12UE,Huntingdonshire District Council,01/03/2012,99254,1875.22,E-On Energy,CR416430,One Leisure Ramsey,Gas,421
http://statistics.data.gov.uk/id/local-authority/12UE,Huntingdonshire District Council,22/03/2012,98839,1877.98,Swalec,CR407130,One Leisure Ramsey,Gas,421
http://statistics.data.gov.uk/id/local-authority/12UE,Huntingdonshire District Council,15/03/2012,100579,888.41,Ecocleen Services Limited,CR406985,One Leisure Ramsey,Gen Building Mtce - Planned,304
http://statistics.data.gov.uk/id/local-authority/12UE,Huntingdonshire District Council,01/03/2012,98649,340.35,Experian Ltd,CR401513,One Leisure Ramsey,Licences,730
http://statistics.data.gov.uk/id/local-authority/12UE,Huntingdonshire District Council,15/03/2012,100838,498.72,Caci Limited,CR409683,One Leisure Ramsey,Printing (External),220
http://statistics.data.gov.uk/id/local-authority/12UE,Huntingdonshire District Council,29/03/2012,100939,1556.04,Gladstone Mrm,CR405717,One Leisure Ramsey,Software,206
http://statistics.data.gov.uk/id/local-authority/12UE,Huntingdonshire District Council,15/03/2012,100660,333.4,Magenta Coaching Solutions,CR480942,One Leisure Ramsey,Training - Operational,131
http://statistics.data.gov.uk/id/local-authority/12UE,Huntingdonshire District Council,15/03/2012,100570,636.58,Booker Cash And Carry,CR027611,One Leisure Ramsey,Vending Materials,560
http://statistics.data.gov.uk/id/local-authority/12UE,Huntingdonshire District Council,01/03/2012,99006,74.43,G4s Cashservices Uk Ltd,CR407133,One Leisure Sawtry,Cash Collection,702
http://statistics.data.gov.uk/id/local-authority/12UE,Huntingdonshire District Council,08/03/2012,100382,46.2,Ecocleen Services Limited,CR406985,One Leisure Sawtry,Cleaning Materials,443
http://statistics.data.gov.uk/id/local-authority/12UE,Huntingdonshire District Council,22/03/2012,100652,3947.5,Swalec,CR407130,One Leisure Sawtry,Electricity,420
http://statistics.data.gov.uk/id/local-authority/12UE,Huntingdonshire District Council,22/03/2012,98840,3558.96,Swalec,CR407130,One Leisure Sawtry,Electricity,420
http://statistics.data.gov.uk/id/local-authority/12UE,Huntingdonshire District Council,01/03/2012,99251,2203.21,E-On Energy,CR416430,One Leisure Sawtry,Gas,421
http://statistics.data.gov.uk/id/local-authority/12UE,Huntingdonshire District Council,22/03/2012,101240,2115.6,E-On Energy,CR416430,One Leisure Sawtry,Gas,421
http://statistics.data.gov.uk/id/local-authority/12UE,Huntingdonshire District Council,08/03/2012,100382,1089.3,Ecocleen Services Limited,CR406985,One Leisure Sawtry,Gen Building Mtce - Planned,304
http://statistics.data.gov.uk/id/local-authority/12UE,Huntingdonshire District Council,29/03/2012,100383,702.3,Technical Surfaces Ltd,CR031941,One Leisure Sawtry,Grounds Mtce Contractors,351
http://statistics.data.gov.uk/id/local-authority/12UE,Huntingdonshire District Council,01/03/2012,98649,340.34,Experian Ltd,CR401513,One Leisure Sawtry,Licences,730
http://statistics.data.gov.uk/id/local-authority/12UE,Huntingdonshire District Council,15/03/2012,100838,498.72,Caci Limited,CR409683,One Leisure Sawtry,Printing (External),220
http://statistics.data.gov.uk/id/local-authority/12UE,Huntingdonshire District Council,29/03/2012,100574,681.6,Activ Security,CR409710,One Leisure Sawtry,Security,450
http://statistics.data.gov.uk/id/local-authority/12UE,Huntingdonshire District Council,29/03/2012,100939,1556.04,Gladstone Mrm,CR405717,One Leisure Sawtry,Software,206
http://statistics.data.gov.uk/id/local-authority/12UE,Huntingdonshire District Council,01/03/2012,99207,5032.91,Les Mills,CR025826,One Leisure Sawtry,Training - Operational,131
http://statistics.data.gov.uk/id/local-authority/12UE,Huntingdonshire District Council,15/03/2012,100660,333.4,Magenta Coaching Solutions,CR480942,One Leisure Sawtry,Training - Operational,131
http://statistics.data.gov.uk/id/local-authority/12UE,Huntingdonshire District Council,01/03/2012,98896,180,Yell Limited,CR416111,One Leisure St Ives,Advertising/Promoting Services,255
http://statistics.data.gov.uk/id/local-authority/12UE,Huntingdonshire District Council,15/03/2012,100663,692.36,Booker Cash And Carry,CR027611,One Leisure St Ives,Bar Provisions,558
http://statistics.data.gov.uk/id/local-authority/12UE,Huntingdonshire District Council,29/03/2012,100258,230.93,Booker Cash And Carry,CR027611,One Leisure St Ives,Bar Provisions,558
http://statistics.data.gov.uk/id/local-authority/12UE,Huntingdonshire District Council,15/03/2012,100350,420.19,Booker Cash And Carry,CR027611,One Leisure St Ives,Bar Provisions,558
http://statistics.data.gov.uk/id/local-authority/12UE,Huntingdonshire District Council,15/03/2012,100948,1145.5,Heineken Uk Ltd,CR032678,One Leisure St Ives,Bar Provisions,558
http://statistics.data.gov.uk/id/local-authority/12UE,Huntingdonshire District Council,15/03/2012,99878,888.85,Heineken Uk Ltd,CR032678,One Leisure St Ives,Bar Provisions,558
http://statistics.data.gov.uk/id/local-authority/12UE,Huntingdonshire District Council,01/03/2012,98648,649.87,Heineken Uk Ltd,CR032678,One Leisure St Ives,Bar Provisions,558
http://statistics.data.gov.uk/id/local-authority/12UE,Huntingdonshire District Council,08/03/2012,100247,1750.19,Ecocleen Services Limited,CR406985,One Leisure St Ives,Building Cleaning Internal,440
http://statistics.data.gov.uk/id/local-authority/12UE,Huntingdonshire District Council,01/03/2012,99006,223.22,G4s Cashservices Uk Ltd,CR407133,One Leisure St Ives,Cash Collection,702
http://statistics.data.gov.uk/id/local-authority/12UE,Huntingdonshire District Council,15/03/2012,100663,250.96,Booker Cash And Carry,CR027611,One Leisure St Ives,Catering Materials,559
http://statistics.data.gov.uk/id/local-authority/12UE,Huntingdonshire District Council,29/03/2012,100258,96.74,Booker Cash And Carry,CR027611,One Leisure St Ives,Catering Materials,559
http://statistics.data.gov.uk/id/local-authority/12UE,Huntingdonshire District Council,15/03/2012,100350,56.35,Booker Cash And Carry,CR027611,One Leisure St Ives,Catering Materials,559
http://statistics.data.gov.uk/id/local-authority/12UE,Huntingdonshire District Council,15/03/2012,100350,3,Booker Cash And Carry,CR027611,One Leisure St Ives,Cleaning Materials,443
http://statistics.data.gov.uk/id/local-authority/12UE,Huntingdonshire District Council,15/03/2012,100663,46.75,Booker Cash And Carry,CR027611,One Leisure St Ives,Confectionery,572
http://statistics.data.gov.uk/id/local-authority/12UE,Huntingdonshire District Council,29/03/2012,100258,264.73,Booker Cash And Carry,CR027611,One Leisure St Ives,Confectionery,572
http://statistics.data.gov.uk/id/local-authority/12UE,Huntingdonshire District Council,15/03/2012,100350,36.43,Booker Cash And Carry,CR027611,One Leisure St Ives,Confectionery,572
http://statistics.data.gov.uk/id/local-authority/12UE,Huntingdonshire District Council,08/03/2012,98957,518.4,Edf Energy Customer Field Services,CR477611,One Leisure St Ives,Electricity,420
http://statistics.data.gov.uk/id/local-authority/12UE,Huntingdonshire District Council,22/03/2012,101359,9848.51,E-On Energy,CR416430,One Leisure St Ives,Electricity,420
http://statistics.data.gov.uk/id/local-authority/12UE,Huntingdonshire District Council,29/03/2012,101822,2881.43,E-On Energy,CR416430,One Leisure St Ives,Electricity,420
http://statistics.data.gov.uk/id/local-authority/12UE,Huntingdonshire District Council,15/03/2012,95835,3000,A J Promotions Ltd,CR453799,One Leisure St Ives,Entertainments Inc Cable Tv,744
http://statistics.data.gov.uk/id/local-authority/12UE,Huntingdonshire District Council,29/03/2012,101833,517.2,Sky Business,CR033259,One Leisure St Ives,Entertainments Inc Cable Tv,744
http://statistics.data.gov.uk/id/local-authority/12UE,Huntingdonshire District Council,22/03/2012,101233,3758.17,E-On Energy,CR416430,One Leisure St Ives,Gas,421
http://statistics.data.gov.uk/id/local-authority/12UE,Huntingdonshire District Council,01/03/2012,99253,3633.77,E-On Energy,CR416430,One Leisure St Ives,Gas,421
http://statistics.data.gov.uk/id/local-authority/12UE,Huntingdonshire District Council,01/03/2012,99260,726.92,E-On Energy,CR416430,One Leisure St Ives,Gas,421
http://statistics.data.gov.uk/id/local-authority/12UE,Huntingdonshire District Council,22/03/2012,101239,683.35,E-On Energy,CR416430,One Leisure St Ives,Gas,421
http://statistics.data.gov.uk/id/local-authority/12UE,Huntingdonshire District Council,01/03/2012,98984,636.38,Leisure Repair,CR403762,One Leisure St Ives,Gen Building Mtce - Responsive,303
http://statistics.data.gov.uk/id/local-authority/12UE,Huntingdonshire District Council,01/03/2012,99315,681.44,Roger Wilson Electronics,CR028041,One Leisure St Ives,Gen Building Mtce - Responsive,303
http://statistics.data.gov.uk/id/local-authority/12UE,Huntingdonshire District Council,29/03/2012,101183,682.31,Sherriff Amenity Services,CR416316,One Leisure St Ives,Grounds Mtce Contractors,351
http://statistics.data.gov.uk/id/local-authority/12UE,Huntingdonshire District Council,01/03/2012,98649,340.36,Experian Ltd,CR401513,One Leisure St Ives,Licences,730
http://statistics.data.gov.uk/id/local-authority/12UE,Huntingdonshire District Council,15/03/2012,100663,59.17,Booker Cash And Carry,CR027611,One Leisure St Ives,Materials,550
http://statistics.data.gov.uk/id/local-authority/12UE,Huntingdonshire District Council,15/03/2012,100350,25.18,Booker Cash And Carry,CR027611,One Leisure St Ives,Materials,550
http://statistics.data.gov.uk/id/local-authority/12UE,Huntingdonshire District Council,22/03/2012,101190,798.73,Siemens Plc,CR407224,One Leisure St Ives,Plant & Equipment Maintenance,380
http://statistics.data.gov.uk/id/local-authority/12UE,Huntingdonshire District Council,15/03/2012,99877,750,Siemens Plc,CR407224,One Leisure St Ives,Plant & Equipment Maintenance,380
http://statistics.data.gov.uk/id/local-authority/12UE,Huntingdonshire District Council,29/03/2012,101837,618.5,Purchase Power,CR033202,One Leisure St Ives,Postage,231
http://statistics.data.gov.uk/id/local-authority/12UE,Huntingdonshire District Council,15/03/2012,100838,498.72,Caci Limited,CR409683,One Leisure St Ives,Printing (External),220
http://statistics.data.gov.uk/id/local-authority/12UE,Huntingdonshire District Council,08/03/2012,99812,1596,Clanpress King'S Lynn Ltd,CR413516,One Leisure St Ives,Printing (External),220
http://statistics.data.gov.uk/id/local-authority/12UE,Huntingdonshire District Council,15/03/2012,100315,1973.64,Peter Lockyer Advertising Ltd,CR033030,One Leisure St Ives,Recruitment - Advertising,120
http://statistics.data.gov.uk/id/local-authority/12UE,Huntingdonshire District Council,22/03/2012,100613,192.61,Peter Lockyer Advertising Ltd,CR033030,One Leisure St Ives,Recruitment - Advertising,120
http://statistics.data.gov.uk/id/local-authority/12UE,Huntingdonshire District Council,29/03/2012,100939,1556.04,Gladstone Mrm,CR405717,One Leisure St Ives,Software,206
http://statistics.data.gov.uk/id/local-authority/12UE,Huntingdonshire District Council,15/03/2012,99519,1646.89,Gladstone Mrm,CR405717,One Leisure St Ives,Software,206
http://statistics.data.gov.uk/id/local-authority/12UE,Huntingdonshire District Council,29/03/2012,101641,2160,Stadia Sports International Ld,CR026169,One Leisure St Ives,Sports Equipment,524
http://statistics.data.gov.uk/id/local-authority/12UE,Huntingdonshire District Council,01/03/2012,98886,20.43,Virgin Media Business,CR033120,One Leisure St Ives,Telephone Charges,240
http://statistics.data.gov.uk/id/local-authority/12UE,Huntingdonshire District Council,15/03/2012,100660,333.4,Magenta Coaching Solutions,CR480942,One Leisure St Ives,Training - Operational,131
http://statistics.data.gov.uk/id/local-authority/12UE,Huntingdonshire District Council,15/03/2012,100351,1515.17,Booker Cash And Carry,CR027611,One Leisure St Ives,Vending Materials,560
http://statistics.data.gov.uk/id/local-authority/12UE,Huntingdonshire District Council,29/03/2012,100258,176.22,Booker Cash And Carry,CR027611,One Leisure St Ives,Vending Materials,560
http://statistics.data.gov.uk/id/local-authority/12UE,Huntingdonshire District Council,15/03/2012,100242,828.95,Glaxosmithkline,CR010424,One Leisure St Ives,Vending Materials,560
http://statistics.data.gov.uk/id/local-authority/12UE,Huntingdonshire District Council,01/03/2012,98439,372,Star 107.9/1,CR453808,One Leisure St Neots,Advertising/Promoting Services,255
http://statistics.data.gov.uk/id/local-authority/12UE,Huntingdonshire District Council,01/03/2012,98896,366,Yell Limited,CR416111,One Leisure St Neots,Advertising/Promoting Services,255
http://statistics.data.gov.uk/id/local-authority/12UE,Huntingdonshire District Council,01/03/2012,99006,446.44,G4s Cashservices Uk Ltd,CR407133,One Leisure St Neots,Cash Collection,702
http://statistics.data.gov.uk/id/local-authority/12UE,Huntingdonshire District Council,08/03/2012,99441,696,Brenntag Uk Ltd,CR015017,One Leisure St Neots,Chemicals,551
http://statistics.data.gov.uk/id/local-authority/12UE,Huntingdonshire District Council,01/03/2012,98556,778.48,Chemaide Limited,CR416597,One Leisure St Neots,Cleaning Materials,443
http://statistics.data.gov.uk/id/local-authority/12UE,Huntingdonshire District Council,01/03/2012,99250,2914.37,E-On Energy,CR416430,One Leisure St Neots,Gas,421
http://statistics.data.gov.uk/id/local-authority/12UE,Huntingdonshire District Council,22/03/2012,101228,2753.23,E-On Energy,CR416430,One Leisure St Neots,Gas,421
http://statistics.data.gov.uk/id/local-authority/12UE,Huntingdonshire District Council,01/03/2012,99252,517.31,E-On Energy,CR416430,One Leisure St Neots,Gas,421
http://statistics.data.gov.uk/id/local-authority/12UE,Huntingdonshire District Council,29/03/2012,100436,788.06,Kershaw Mechanical Services Ltd,CR480268,One Leisure St Neots,Gen Building Mtce - Planned,304
http://statistics.data.gov.uk/id/local-authority/12UE,Huntingdonshire District Council,08/03/2012,99437,2154.59,Roger Wilson Electronics,CR028041,One Leisure St Neots,Gen Building Mtce - Planned,304
http://statistics.data.gov.uk/id/local-authority/12UE,Huntingdonshire District Council,15/03/2012,100843,626.4,Jsa Leisure Ltd,CR40187,One Leisure St Neots,Gen Building Mtce - Responsive,303
http://statistics.data.gov.uk/id/local-authority/12UE,Huntingdonshire District Council,01/03/2012,98649,340.34,Experian Ltd,CR401513,One Leisure St Neots,Licences,730
http://statistics.data.gov.uk/id/local-authority/12UE,Huntingdonshire District Council,22/03/2012,100404,481.18,Gerrard Iternational,CR480778,One Leisure St Neots,Materials,550
http://statistics.data.gov.uk/id/local-authority/12UE,Huntingdonshire District Council,22/03/2012,100404,211.66,Gerrard Iternational,CR480778,One Leisure St Neots,Materials For Resale,570
http://statistics.data.gov.uk/id/local-authority/12UE,Huntingdonshire District Council,08/03/2012,99437,42.6,Roger Wilson Electronics,CR028041,One Leisure St Neots,Materials For Resale,570
http://statistics.data.gov.uk/id/local-authority/12UE,Huntingdonshire District Council,15/03/2012,99859,880,Siemens Plc,CR407224,One Leisure St Neots,Plant & Equipment Maintenance,380
http://statistics.data.gov.uk/id/local-authority/12UE,Huntingdonshire District Council,15/03/2012,100838,498.72,Caci Limited,CR409683,One Leisure St Neots,Printing (External),220
http://statistics.data.gov.uk/id/local-authority/12UE,Huntingdonshire District Council,22/03/2012,100613,192.61,Peter Lockyer Advertising Ltd,CR033030,One Leisure St Neots,Recruitment - Advertising,120
http://statistics.data.gov.uk/id/local-authority/12UE,Huntingdonshire District Council,22/03/2012,101338,695.46,Anglian Water,CR000071,One Leisure St Neots,Sewerage,433
http://statistics.data.gov.uk/id/local-authority/12UE,Huntingdonshire District Council,29/03/2012,100939,1556.04,Gladstone Mrm,CR405717,One Leisure St Neots,Software,206
http://statistics.data.gov.uk/id/local-authority/12UE,Huntingdonshire District Council,15/03/2012,100660,333.4,Magenta Coaching Solutions,CR480942,One Leisure St Neots,Training - Operational,131
http://statistics.data.gov.uk/id/local-authority/12UE,Huntingdonshire District Council,29/03/2012,100342,662.78,Glaxosmithkline,CR010424,One Leisure St Neots,Vending Materials,560
http://statistics.data.gov.uk/id/local-authority/12UE,Huntingdonshire District Council,29/03/2012,100343,570.05,Snackline Direct Ltd,CR478090,One Leisure St Neots,Vending Materials,560
http://statistics.data.gov.uk/id/local-authority/12UE,Huntingdonshire District Council,22/03/2012,99826,550.76,Snackline Direct Ltd,CR478090,One Leisure St Neots,Vending Materials,560
http://statistics.data.gov.uk/id/local-authority/12UE,Huntingdonshire District Council,22/03/2012,101338,626.51,Anglian Water,CR000071,One Leisure St Neots,Water,432
http://statistics.data.gov.uk/id/local-authority/12UE,Huntingdonshire District Council,22/03/2012,101341,764.99,Anglian Water,CR000071,One Leisure St Neots,Water,432
http://statistics.data.gov.uk/id/local-authority/12UE,Huntingdonshire District Council,29/03/2012,101330,543.44,Snacktime Vmi,CR482479,Operations Mgt Units,Service Charges,412
http://statistics.data.gov.uk/id/local-authority/12UE,Huntingdonshire District Council,01/03/2012,98889,335,Edrm Systems Ltd,CR416278,Other Operating Inc & Expend,Consultants,711
http://statistics.data.gov.uk/id/local-authority/12UE,Huntingdonshire District Council,29/03/2012,101205,335,Edrm Systems Ltd,CR416278,Other Operating Inc & Expend,Consultants,711
http://statistics.data.gov.uk/id/local-authority/12UE,Huntingdonshire District Council,22/03/2012,100238,929.04,Blueton Limited,CR453937,Parks & Open Spaces,Equipment Purchases,500
http://statistics.data.gov.uk/id/local-authority/12UE,Huntingdonshire District Council,29/03/2012,100400,2672.52,Tamar Nurseries Ltd,CR480100,Parks & Open Spaces,Plants And Seeds,556
http://statistics.data.gov.uk/id/local-authority/12UE,Huntingdonshire District Council,29/03/2012,100740,1800,Gladwins,CR403136,Parks & Open Spaces,Signs,565
http://statistics.data.gov.uk/id/local-authority/12UE,Huntingdonshire District Council,08/03/2012,100168,2146.93,Ecocleen Services Limited,CR406985,Pathfinder House Site,Building Cleaning Internal,440
http://statistics.data.gov.uk/id/local-authority/12UE,Huntingdonshire District Council,22/03/2012,100181,699.72,Maskearaid Ind Supplies,CR033423,Pathfinder House Site,Cleaning Materials,443
http://statistics.data.gov.uk/id/local-authority/12UE,Huntingdonshire District Council,15/03/2012,100944,1343.28,Barker Storey Matthews,CR400788,Pathfinder House Site,Consultants,711
http://statistics.data.gov.uk/id/local-authority/12UE,Huntingdonshire District Council,22/03/2012,101357,9880.1,E-On Energy,CR416430,Pathfinder House Site,Electricity,420
http://statistics.data.gov.uk/id/local-authority/12UE,Huntingdonshire District Council,01/03/2012,98504,1411.2,Flora Tec Ltd,CR028191,Pathfinder House Site,Equipment Cleaning,512
http://statistics.data.gov.uk/id/local-authority/12UE,Huntingdonshire District Council,29/03/2012,100606,655.2,Flora Tec Ltd,CR028191,Pathfinder House Site,Equipment Cleaning,512
http://statistics.data.gov.uk/id/local-authority/12UE,Huntingdonshire District Council,15/03/2012,99783,8910,Coel,CR452717,Pathfinder House Site,Equipment Purchases,500
http://statistics.data.gov.uk/id/local-authority/12UE,Huntingdonshire District Council,22/03/2012,101243,7905.86,E-On Energy,CR416430,Pathfinder House Site,Gas,421
http://statistics.data.gov.uk/id/local-authority/12UE,Huntingdonshire District Council,29/03/2012,101273,1213.72,Burgin Ltd,CR482438,Pathfinder House Site,Gen Building Mtce - Responsive,303
http://statistics.data.gov.uk/id/local-authority/12UE,Huntingdonshire District Council,29/03/2012,101158,669,Burgin Ltd,CR482438,Pathfinder House Site,Gen Building Mtce - Responsive,303
http://statistics.data.gov.uk/id/local-authority/12UE,Huntingdonshire District Council,22/03/2012,100360,550,Dms Home Improvements & Electrical,CR479202,Pathfinder House Site,Gen Building Mtce - Responsive,303
http://statistics.data.gov.uk/id/local-authority/12UE,Huntingdonshire District Council,29/03/2012,101159,596.96,Burgin Ltd,CR482438,Pathfinder House Site,Plant & Equipment Maintenance,380
http://statistics.data.gov.uk/id/local-authority/12UE,Huntingdonshire District Council,01/03/2012,99700,461.87,Arthur Ibbett Ltd,CR000430,Paxton Pits,Equipment Purchases,500
http://statistics.data.gov.uk/id/local-authority/12UE,Huntingdonshire District Council,01/03/2012,99700,183.07,Arthur Ibbett Ltd,CR000430,Paxton Pits,Materials,550
http://statistics.data.gov.uk/id/local-authority/12UE,Huntingdonshire District Council,29/03/2012,100708,86.9,Arthur Ibbett Ltd,CR000430,Paxton Pits,Materials,550
http://statistics.data.gov.uk/id/local-authority/12UE,Huntingdonshire District Council,01/03/2012,99700,45,Arthur Ibbett Ltd,CR000430,Paxton Pits,Protective Clothing & Uniforms,163
http://statistics.data.gov.uk/id/local-authority/12UE,Huntingdonshire District Council,29/03/2012,100708,81.6,Arthur Ibbett Ltd,CR000430,Paxton Pits,Protective Clothing & Uniforms,163
http://statistics.data.gov.uk/id/local-authority/12UE,Huntingdonshire District Council,29/03/2012,100920,780,Peter Stopford Tree Specialist,CR478494,Paxton Pits,Tree Maintenance,357
http://statistics.data.gov.uk/id/local-authority/12UE,Huntingdonshire District Council,01/03/2012,99738,299.8,Computershare Vouchers Ltd,CR412205,Payroll,Childcare Admin Vouchers,144
http://statistics.data.gov.uk/id/local-authority/12UE,Huntingdonshire District Council,29/03/2012,101695,297.48,Computershare Vouchers Ltd,CR412205,Payroll,Childcare Admin Vouchers,144
http://statistics.data.gov.uk/id/local-authority/12UE,Huntingdonshire District Council,08/03/2012,98887,15178.49,Northgate Information Solutions Uk Ltd,CR028925,Payroll,Software,206
http://statistics.data.gov.uk/id/local-authority/12UE,Huntingdonshire District Council,08/03/2012,98888,858.6,Northgate Information Solutions Uk Ltd,CR028925,Payroll,Software,206
http://statistics.data.gov.uk/id/local-authority/12UE,Huntingdonshire District Council,08/03/2012,98587,13860,Penna Plc,CR482598,People Performance&Partner Mu,Consultants,711
http://statistics.data.gov.uk/id/local-authority/12UE,Huntingdonshire District Council,22/03/2012,100224,11880,Penna Plc,CR482598,People Performance&Partner Mu,Consultants,711
http://statistics.data.gov.uk/id/local-authority/12UE,Huntingdonshire District Council,05/03/2012,100194,930,Cipp,CR405571,People Performance&Partner Mu,Training - Operational,131
http://statistics.data.gov.uk/id/local-authority/12UE,Huntingdonshire District Council,15/03/2012,99747,2531.88,Essex Environmental Supplies Limited,CR40195,Pest Control,Health & Safety,718
http://statistics.data.gov.uk/id/local-authority/12UE,Huntingdonshire District Council,23/03/2012,531788,210,Post Office  Ltd,CR008902,Pest Control,Vehicle Licence,609
http://statistics.data.gov.uk/id/local-authority/12UE,Huntingdonshire District Council,22/03/2012,101199,1099.17,Swalec,CR407130,Property Development And Mgt,Electricity,420
http://statistics.data.gov.uk/id/local-authority/12UE,Huntingdonshire District Council,22/03/2012,99890,800,Dms Home Improvements & Electrical,CR479202,Property Development And Mgt,Gen Building Mtce - Responsive,303
http://statistics.data.gov.uk/id/local-authority/12UE,Huntingdonshire District Council,01/03/2012,98346,1866.95,J Breheny Contractors Ltd,CR000314,Property Development And Mgt,Sitework,359
http://statistics.data.gov.uk/id/local-authority/12UE,Huntingdonshire District Council,15/03/2012,96558,3615,Media 4 Digital It Services,CR482579,Public Accountability,Other I T Hardware,203
http://statistics.data.gov.uk/id/local-authority/12UE,Huntingdonshire District Council,29/03/2012,100337,1204.99,Media 4 Digital It Services,CR482579,Public Accountability,Other I T Hardware,203
http://statistics.data.gov.uk/id/local-authority/12UE,Huntingdonshire District Council,15/03/2012,100834,1204.99,Media 4 Digital It Services,CR482579,Public Accountability,Other I T Hardware,203
http://statistics.data.gov.uk/id/local-authority/12UE,Huntingdonshire District Council,16/03/2012,101127,2995.2,Community Information Services Ltd,CR477930,Public Accountability,Printing (External),220
http://statistics.data.gov.uk/id/local-authority/12UE,Huntingdonshire District Council,22/03/2012,100682,598.42,Swalec,CR407130,Public Conveniences,Electricity,420
http://statistics.data.gov.uk/id/local-authority/12UE,Huntingdonshire District Council,08/03/2012,100169,1027,Ecocleen Services Limited,CR406985,Public Conveniences,Gen Building Mtce - Responsive,303
http://statistics.data.gov.uk/id/local-authority/12UE,Huntingdonshire District Council,22/03/2012,100761,3294.48,Staffline Group,CR416827,Recycling,Hired Staff,100
http://statistics.data.gov.uk/id/local-authority/12UE,Huntingdonshire District Council,15/03/2012,100270,1536.89,Staffline Group,CR416827,Recycling,Hired Staff,100
http://statistics.data.gov.uk/id/local-authority/12UE,Huntingdonshire District Council,29/03/2012,100762,958.57,Staffline Group,CR416827,Recycling,Hired Staff,100
http://statistics.data.gov.uk/id/local-authority/12UE,Huntingdonshire District Council,08/03/2012,99263,849.13,Staffline Group,CR416827,Recycling,Hired Staff,100
http://statistics.data.gov.uk/id/local-authority/12UE,Huntingdonshire District Council,22/03/2012,100753,11013.6,Gelpack Excelsior Limited,CR002966,Recycling,Refuse Sacks,552
http://statistics.data.gov.uk/id/local-authority/12UE,Huntingdonshire District Council,01/03/2012,98609,1371.61,Bandvulc Tyres Ltd,CR406810,Recycling,Tyres,630
http://statistics.data.gov.uk/id/local-authority/12UE,Huntingdonshire District Council,29/03/2012,100746,726.46,Bandvulc Tyres Ltd,CR406810,Recycling,Tyres,630
http://statistics.data.gov.uk/id/local-authority/12UE,Huntingdonshire District Council,23/03/2012,531788,1300,Post Office  Ltd,CR008902,Recycling,Vehicle Licence,609
http://statistics.data.gov.uk/id/local-authority/12UE,Huntingdonshire District Council,15/03/2012,100291,120,M & N Vehicle Services,CR480661,Recycling,Vehicle Mot,622
http://statistics.data.gov.uk/id/local-authority/12UE,Huntingdonshire District Council,29/03/2012,101576,743.4,Dennis Eagle Ltd,CR000200,Recycling,Vehicle Parts,625
http://statistics.data.gov.uk/id/local-authority/12UE,Huntingdonshire District Council,15/03/2012,100291,935.45,M & N Vehicle Services,CR480661,Recycling,Vehicle Parts,625
http://statistics.data.gov.uk/id/local-authority/12UE,Huntingdonshire District Council,29/03/2012,99967,8265,Magnet Solutions,CR416903,Revenue Services Mus,Enquiries,723
http://statistics.data.gov.uk/id/local-authority/12UE,Huntingdonshire District Council,08/03/2012,98864,792.37,Royal Mail,CR027083,Revenue Services Mus,Postage,231
http://statistics.data.gov.uk/id/local-authority/12UE,Huntingdonshire District Council,08/03/2012,99216,484.95,T N T Post Midlands Ltd,CR479965,Revenue Services Mus,Postage,231
http://statistics.data.gov.uk/id/local-authority/12UE,Huntingdonshire District Council,22/03/2012,100265,290.47,T N T Post Midlands Ltd,CR479965,Revenue Services Mus,Postage,231
http://statistics.data.gov.uk/id/local-authority/12UE,Huntingdonshire District Council,15/03/2012,99464,228.98,T N T Post Midlands Ltd,CR479965,Revenue Services Mus,Postage,231
http://statistics.data.gov.uk/id/local-authority/12UE,Huntingdonshire District Council,29/03/2012,100435,183.82,T N T Post Midlands Ltd,CR479965,Revenue Services Mus,Postage,231
http://statistics.data.gov.uk/id/local-authority/12UE,Huntingdonshire District Council,22/03/2012,101320,4666.28,Intecpublicsector,CR478150,Revenue Services Mus,Software,206
http://statistics.data.gov.uk/id/local-authority/12UE,Huntingdonshire District Council,22/03/2012,101166,4668,Cipfa,CR000107,Revenue Services Mus,Training - Operational,131
http://statistics.data.gov.uk/id/local-authority/12UE,Huntingdonshire District Council,15/03/2012,99503,780,Edrm At Work,CR482294,Software Capital,Consultants,711
http://statistics.data.gov.uk/id/local-authority/12UE,Huntingdonshire District Council,01/03/2012,98889,3685,Edrm Systems Ltd,CR416278,Software Capital,Consultants,711
http://statistics.data.gov.uk/id/local-authority/12UE,Huntingdonshire District Council,29/03/2012,101205,3350,Edrm Systems Ltd,CR416278,Software Capital,Consultants,711
http://statistics.data.gov.uk/id/local-authority/12UE,Huntingdonshire District Council,08/03/2012,99471,22950,Kelway (Uk) Ltd,CR004345,Software Capital,Consultants,711
http://statistics.data.gov.uk/id/local-authority/12UE,Huntingdonshire District Council,08/03/2012,98660,22725,Kelway (Uk) Ltd,CR004345,Software Capital,Consultants,711
http://statistics.data.gov.uk/id/local-authority/12UE,Huntingdonshire District Council,08/03/2012,99468,-22725,Kelway (Uk) Ltd,CR004345,Software Capital,Consultants,711
http://statistics.data.gov.uk/id/local-authority/12UE,Huntingdonshire District Council,29/03/2012,100356,9360,Northgate Information Solutions Uk Ltd,CR028925,Software Capital,Equipment Maintenance,511
http://statistics.data.gov.uk/id/local-authority/12UE,Huntingdonshire District Council,15/03/2012,100411,10646.1,Capita,CR481146,Software Capital,Software,206
http://statistics.data.gov.uk/id/local-authority/12UE,Huntingdonshire District Council,01/03/2012,98656,2940,Idox Software Ltd,CR403657,Software Capital,Software,206
http://statistics.data.gov.uk/id/local-authority/12UE,Huntingdonshire District Council,08/03/2012,100326,11160,Ieg4 Limited,CR453919,Software Capital,Software,206
http://statistics.data.gov.uk/id/local-authority/12UE,Huntingdonshire District Council,22/03/2012,100327,9300,Ieg4 Limited,CR453919,Software Capital,Software,206
http://statistics.data.gov.uk/id/local-authority/12UE,Huntingdonshire District Council,29/03/2012,100356,68556.9,Northgate Information Solutions Uk Ltd,CR028925,Software Capital,Software,206
http://statistics.data.gov.uk/id/local-authority/12UE,Huntingdonshire District Council,15/03/2012,99431,522,Red Forge Ltd,CR405690,Street Cleaning,Equipment Maintenance,511
http://statistics.data.gov.uk/id/local-authority/12UE,Huntingdonshire District Council,01/03/2012,98973,525.25,Staffline Group,CR416827,Street Cleaning,Hired Staff,100
http://statistics.data.gov.uk/id/local-authority/12UE,Huntingdonshire District Council,29/03/2012,100765,525.25,Staffline Group,CR416827,Street Cleaning,Hired Staff,100
http://statistics.data.gov.uk/id/local-authority/12UE,Huntingdonshire District Council,22/03/2012,100766,525.25,Staffline Group,CR416827,Street Cleaning,Hired Staff,100
http://statistics.data.gov.uk/id/local-authority/12UE,Huntingdonshire District Council,01/03/2012,98609,1113.35,Bandvulc Tyres Ltd,CR406810,Street Cleaning,Tyres,630
http://statistics.data.gov.uk/id/local-authority/12UE,Huntingdonshire District Council,23/03/2012,531788,1078,Post Office  Ltd,CR008902,Street Cleaning,Vehicle Licence,609
http://statistics.data.gov.uk/id/local-authority/12UE,Huntingdonshire District Council,01/03/2012,98606,2106.54,Johnston Engineering Ltd,CR029831,Street Cleaning,Vehicle Parts,625
http://statistics.data.gov.uk/id/local-authority/12UE,Huntingdonshire District Council,01/03/2012,98605,1372.76,Johnston Engineering Ltd,CR029831,Street Cleaning,Vehicle Parts,625
http://statistics.data.gov.uk/id/local-authority/12UE,Huntingdonshire District Council,01/03/2012,98412,3050.11,J Breheny Contractors Ltd,CR000314,Street Naming,Signs Erecting & Removal,361
http://statistics.data.gov.uk/id/local-authority/12UE,Huntingdonshire District Council,01/03/2012,99875,1572,Huntingdon Town Centre Initiative,CR415389,Town Centre Management,Grants (Paid Out),800
http://statistics.data.gov.uk/id/local-authority/12UE,Huntingdonshire District Council,01/03/2012,99872,1657,St Ives Town Initiative,CR415390,Town Centre Management,Grants (Paid Out),800
http://statistics.data.gov.uk/id/local-authority/12UE,Huntingdonshire District Council,01/03/2012,99874,1379,St Neots Town Centre Initiative,CR403542,Town Centre Management,Grants (Paid Out),800
http://statistics.data.gov.uk/id/local-authority/12UE,Huntingdonshire District Council,22/03/2012,100753,5257.15,Gelpack Excelsior Limited,CR002966,Trade Waste,Refuse Sacks,552
http://statistics.data.gov.uk/id/local-authority/12UE,Huntingdonshire District Council,15/03/2012,99494,3032.64,Cambridgeshire County Council,CR006678,Trade Waste,Waste Disposal,763
http://statistics.data.gov.uk/id/local-authority/12UE,Huntingdonshire District Council,29/03/2012,100595,65224.99,John Henry & Sons,CR031967,Transportation Capital,Sitework,359
http://statistics.data.gov.uk/id/local-authority/12UE,Huntingdonshire District Council,01/03/2012,98940,52180,John Henry & Sons,CR031967,Transportation Capital,Sitework,359
http://statistics.data.gov.uk/id/local-authority/12UE,Huntingdonshire District Council,22/03/2012,100216,1368,Arthur Ibbett Ltd,CR000430,Vehicles & Plant Capital,Vehicles Purchased,600
http://statistics.data.gov.uk/id/local-authority/12UE,Huntingdonshire District Council,22/03/2012,100898,90399.6,Ernest Doe & Sons,CR000261,Vehicles & Plant Capital,Vehicles Purchased,600
http://statistics.data.gov.uk/id/local-authority/12UE,Huntingdonshire District Council,01/03/2012,98855,2454,Dal-Rod (Camridgeshire),CR413675,Watercourses,Sitework,359
http://statistics.data.gov.uk/id/local-authority/12UE,Huntingdonshire District Council,01/03/2012,98513,3810,Dal-Rod Uk Ltd,CR002782,Watercourses,Sitework,359
http://statistics.data.gov.uk/id/local-authority/12UE,Huntingdonshire District Council,01/03/2012,98516,1896,Dal-Rod Uk Ltd,CR002782,Watercourses,Sitework,359
http://statistics.data.gov.uk/id/local-authority/12UE,Huntingdonshire District Council,01/03/2012,98514,1080,Dal-Rod Uk Ltd,CR002782,Watercourses,Sitework,359
http://statistics.data.gov.uk/id/local-authority/12UE,Huntingdonshire District Council,15/03/2012,99294,750,Dal-Rod Uk Ltd,CR002782,Watercourses,Sitework,359
